bitfinex-derivatives/quotes_BTCF0:USTF0_20250905
["timestamp","ask_amount","ask_price","bid_price","bid_amount"]
[1757062143561,1.4783429,112740.0,112730.0,0.34781]
[1757062143749,0.39285,112740.0,112730.0,0.34781]
[1757062143948,1.4786229,112740.0,112730.0,0.34781]
[1757062144349,1.7375558,112740.0,112730.0,0.34781]
[1757062144549,1.7375558,112740.0,112730.0,0.326]
[1757062144850,1.4786229,112740.0,112730.0,0.326]
[1757062145243,1.74647822,112740.0,112730.0,0.046]
[1757062145446,1.74647822,112740.0,112730.0,0.266]
[1757062145644,1.22861242,112740.0,112730.0,0.266]
[1757062145857,1.74647822,112740.0,112730.0,0.006]
[1757062146044,1.83517072,112740.0,112730.0,0.006]
[1757062146955,1.31730492,112740.0,112730.0,0.006]
[1757062147250,1.83517072,112740.0,112730.0,0.006]
[1757062147458,1.31730492,112740.0,112730.0,0.006]
[1757062147652,1.83517072,112740.0,112730.0,0.006]
[1757062148759,1.90510872,112740.0,112730.0,0.006]
[1757062150059,1.32826872,112740.0,112730.0,0.006]
[1757062150250,2.15494872,112740.0,112730.0,0.006]
[1757062151457,0.1237498,112730.0,112720.0,0.0001]
[1757062151660,0.1237577,112720.0,112710.0,0.02191]
[1757062151855,1.5702506,112720.0,112710.0,0.02181]
[1757062152046,1.5702506,112720.0,112710.0,0.33181]
[1757062152446,0.7434906,112720.0,112710.0,0.33181]
[1757062152658,1.5701706,112720.0,112710.0,0.33181]
[1757062153157,1.5691706,112720.0,112710.0,0.33181]
[1757062153562,1.5681706,112720.0,112710.0,0.33181]
[1757062154462,0.7414906,112720.0,112710.0,0.33181]
[1757062154763,1.5678906,112720.0,112710.0,0.33181]
[1757062154962,1.5679706,112720.0,112710.0,0.33181]
[1757062155165,1.5679706,112720.0,112710.0,0.33581]
[1757062155664,1.5680106,112720.0,112710.0,0.33581]
[1757062156367,0.7414906,112720.0,112710.0,0.33581]
[1757062156559,1.5681706,112720.0,112710.0,0.33581]
[1757062158064,2.2481706,112720.0,112710.0,0.33581]
[1757062158663,1.1625577,112720.0,112710.0,0.33581]
[1757062158865,2.2480506,112720.0,112710.0,0.33581]
[1757062159466,2.2194376,112720.0,112710.0,0.33581]
[1757062165468,2.2194376,112720.0,112710.0,0.314]
[1757062167169,2.2194376,112720.0,112710.0,0.014]
[1757062167372,2.2194376,112720.0,112710.0,0.004]
[1757062167572,2.2194376,112720.0,112710.0,0.114]
[1757062168374,2.6997575,112720.0,112710.0,0.004]
[1757062168674,0.122626,112710.0,112700.0,0.0001]
[1757062168974,0.7137459,112710.0,112700.0,0.31]
[1757062170074,0.7137459,112710.0,112700.0,0.313]
[1757062170670,0.7137459,112710.0,112700.0,0.315]
[1757062171280,0.7137459,112710.0,112700.0,0.005]
[1757062171473,1.7902659,112710.0,112700.0,0.005]
[1757062172181,1.7902659,112710.0,112700.0,0.002]
[1757062172381,1.7932659,112710.0,112700.0,0.002]
[1757062172682,0.9667459,112710.0,112700.0,0.002]
[1757062172876,1.7933059,112710.0,112700.0,0.002]
[1757062173181,0.9667459,112710.0,112700.0,0.002]
[1757062173578,0.9667459,112710.0,112690.0,0.0001]
[1757062173579,0.0887239,112700.0,112690.0,0.0001]
[1757062173778,0.7137538,112700.0,112690.0,0.36]
[1757062176179,1.5393538,112700.0,112690.0,0.38214]
[1757062177583,0.7137538,112700.0,112690.0,0.38214]
[1757062177789,0.4834339,112700.0,112690.0,0.38214]
[1757062177979,1.5389138,112700.0,112690.0,0.38214]
[1757062180488,0.4834339,112700.0,112690.0,0.63214]
[1757062180784,0.4834339,112700.0,112690.0,0.64595]
[1757062181887,0.7137538,112700.0,112690.0,0.64595]
[1757062182483,0.7137538,112700.0,112690.0,0.63214]
[1757062194714,0.4834339,112700.0,112690.0,0.63214]
[1757062195010,0.7137538,112700.0,112690.0,0.63214]
[1757062196612,0.4834339,112700.0,112690.0,0.63214]
[1757062196811,0.7137538,112700.0,112690.0,0.63214]
[1757062198213,0.4834339,112700.0,112690.0,0.63214]
[1757062198413,0.7137538,112700.0,112690.0,0.63214]
[1757062200015,0.7137538,112700.0,112690.0,0.38214]
[1757062201117,0.7137538,112700.0,112690.0,0.36]
[1757062201307,0.1245405,112690.0,112680.0,0.00017695]
[1757062201502,1.5366204,112690.0,112680.0,0.37327695]
[1757062202611,1.54544747,112690.0,112680.0,0.37327695]
[1757062202812,1.54544747,112690.0,112680.0,0.37427695]
[1757062203312,1.54544747,112690.0,112680.0,0.35107695]
[1757062203714,1.54544747,112690.0,112680.0,0.35207695]
[1757062206417,1.54468747,112690.0,112680.0,0.37527695]
[1757062206714,0.72448747,112690.0,112680.0,0.37527695]
[1757062206916,1.54460747,112690.0,112680.0,0.37527695]
[1757062208113,1.31428757,112690.0,112680.0,0.37527695]
[1757062208313,1.54460747,112690.0,112680.0,0.37527695]
[1757062209712,1.54460747,112690.0,112680.0,0.62527695]
[1757062209918,1.2911305,112690.0,112680.0,0.63806695]
[1757062210118,0.4715705,112690.0,112680.0,0.63806695]
[1757062211620,0.7018904,112690.0,112680.0,0.63806695]
[1757062213319,0.4715705,112690.0,112680.0,0.63806695]
[1757062213520,0.7018904,112690.0,112680.0,0.63806695]
[1757062216822,0.7153904,112690.0,112680.0,0.37527695]
[1757062219324,0.72411746,112690.0,112680.0,0.37527695]
[1757062221324,0.72411746,112690.0,112680.0,1.74437695]
[1757062221528,0.75303384,112690.0,112680.0,1.74437695]
[1757062222823,0.49379756,112690.0,112680.0,1.74437695]
[1757062223325,0.75303384,112690.0,112680.0,1.74437695]
[1757062230032,0.49379756,112690.0,112680.0,1.74437695]
[1757062230233,0.75303384,112690.0,112680.0,1.74437695]
[1757062234141,1.55733384,112690.0,112680.0,1.75810695]
[1757062234432,1.57083384,112690.0,112680.0,1.74437695]
[1757062235239,1.31159756,112690.0,112680.0,1.74437695]
[1757062235438,1.57083384,112690.0,112680.0,1.74437695]
[1757062238937,1.57083384,112690.0,112680.0,1.75810695]
[1757062239446,0.75303384,112690.0,112680.0,1.75810695]
[1757062239638,1.57335384,112690.0,112680.0,1.75810695]
[1757062240038,0.75303384,112690.0,112680.0,1.75810695]
[1757062240243,1.57335384,112690.0,112680.0,1.75810695]
[1757062242446,0.75303384,112690.0,112680.0,1.75810695]
[1757062242647,1.57315384,112690.0,112680.0,1.75810695]
[1757062243744,1.55965384,112690.0,112680.0,1.75810695]
[1757062245239,1.55056678,112690.0,112680.0,1.75810695]
[1757062246253,1.55940831,112690.0,112680.0,1.75810695]
[1757062246746,1.57299831,112690.0,112680.0,1.74437695]
[1757062246952,1.57299831,112690.0,112680.0,2.56401695]
[1757062247249,1.57299831,112690.0,112680.0,1.74437695]
[1757062248448,1.57299831,112690.0,112680.0,0.37527695]
[1757062248847,1.31376203,112690.0,112680.0,0.37527695]
[1757062249154,1.57299831,112690.0,112680.0,0.37527695]
[1757062252048,1.83223459,112690.0,112680.0,0.37527695]
[1757062252355,1.83223459,112690.0,112680.0,0.35207695]
[1757062253954,1.83223459,112690.0,112680.0,0.37496695]
[1757062256849,1.83335459,112690.0,112680.0,0.37496695]
[1757062257058,1.57411831,112690.0,112680.0,0.37496695]
[1757062257957,1.83335459,112690.0,112680.0,0.37496695]
[1757062258458,1.83307459,112690.0,112680.0,0.37496695]
[1757062261265,1.83307459,112690.0,112680.0,0.35207695]
[1757062261560,1.83247459,112690.0,112680.0,0.35207695]
[1757062261959,1.83247459,112690.0,112680.0,0.37496695]
[1757062266463,1.01247459,112690.0,112680.0,0.37496695]
[1757062266656,0.75323831,112690.0,112680.0,0.37496695]
[1757062266856,1.57311831,112690.0,112680.0,0.37496695]
[1757062267157,1.2914505,112690.0,112680.0,0.63877695]
[1757062267363,1.55068678,112690.0,112680.0,0.63877695]
[1757062267553,1.56427678,112690.0,112680.0,0.63877695]
[1757062267754,0.74439678,112690.0,112680.0,0.63877695]
[1757062268064,1.57329482,112690.0,112680.0,0.63877695]
[1757062268566,0.49421854,112690.0,112680.0,0.63877695]
[1757062268767,1.57317482,112690.0,112680.0,0.63877695]
[1757062269264,1.57305482,112690.0,112680.0,0.63877695]
[1757062271674,1.57281482,112690.0,112680.0,0.63877695]
[1757062273268,0.75345482,112690.0,112680.0,0.63877695]
[1757062273466,1.57269482,112690.0,112680.0,0.63877695]
[1757062274660,0.74439678,112690.0,112680.0,0.63877695]
[1757062274869,1.54980678,112690.0,112680.0,0.63877695]
[1757062276369,1.56314678,112690.0,112680.0,0.63877695]
[1757062276873,1.57219726,112690.0,112680.0,0.63877695]
[1757062277469,1.57219726,112690.0,112680.0,0.62496695]
[1757062283270,0.4495305,112690.0,112680.0,0.89798323]
[1757062283464,0.4495305,112690.0,112680.0,0.63874695]
[1757062283970,0.4707205,112690.0,112680.0,0.63874695]
[1757062284864,0.70109119,112690.0,112680.0,0.63874695]
[1757062286272,0.4707205,112690.0,112680.0,0.63874695]
[1757062286469,1.2886005,112690.0,112680.0,0.63874695]
[1757062286872,1.29757212,112690.0,112680.0,0.63874695]
[1757062287871,1.31091212,112690.0,112680.0,0.38874695]
[1757062288061,1.54128281,112690.0,112680.0,0.38874695]
[1757062288265,1.54128281,112690.0,112680.0,0.37496695]
[1757062290878,0.72340281,112690.0,112680.0,0.37496695]
[1757062291067,1.54064281,112690.0,112680.0,0.37496695]
[1757062294690,0.72340281,112690.0,112680.0,0.37496695]
[1757062294883,1.30979212,112690.0,112680.0,0.35207695]
[1757062295089,1.54016281,112690.0,112680.0,0.35207695]
[1757062295591,1.54016281,112690.0,112680.0,0.37379695]
[1757062295985,1.54016281,112690.0,112680.0,1.74289695]
[1757062296193,1.79016281,112690.0,112680.0,1.72117695]
[1757062299284,0.97340281,112690.0,112680.0,1.72117695]
[1757062299485,1.79020281,112690.0,112680.0,1.72117695]
[1757062303597,1.78956281,112690.0,112680.0,1.72117695]
[1757062306198,1.53956281,112690.0,112680.0,1.72117695]
[1757062306999,0.72340281,112690.0,112680.0,1.72117695]
[1757062307198,1.53940281,112690.0,112680.0,1.72117695]
[1757062308194,0.72340281,112690.0,112680.0,1.72117695]
[1757062308394,1.53932281,112690.0,112680.0,1.72117695]
[1757062312703,1.53932281,112690.0,112680.0,1.54117695]
[1757062313602,1.53932281,112690.0,112680.0,1.37117695]
[1757062313997,0.72340281,112690.0,112680.0,1.37117695]
[1757062314196,1.53932281,112690.0,112680.0,1.37117695]
[1757062314402,0.72340281,112690.0,112680.0,1.37117695]
[1757062314602,1.53932281,112690.0,112680.0,1.37117695]
[1757062316403,0.72340281,112690.0,112680.0,1.37117695]
[1757062316805,1.53928281,112690.0,112680.0,1.37117695]
[1757062317603,1.30891212,112690.0,112680.0,1.37117695]
[1757062317806,1.53928281,112690.0,112680.0,1.37117695]
[1757062318206,1.30891212,112690.0,112680.0,1.37117695]
[1757062318401,1.53928281,112690.0,112680.0,1.37117695]
[1757062319104,0.72340281,112690.0,112680.0,1.37117695]
[1757062319304,1.53928281,112690.0,112680.0,1.37117695]
[1757062322707,0.72340281,112690.0,112680.0,1.37117695]
[1757062322899,1.56539002,112690.0,112680.0,1.37117695]
[1757062326816,1.53928281,112690.0,112680.0,1.37117695]
[1757062326998,0.72340281,112690.0,112680.0,1.37117695]
[1757062327200,1.53924281,112690.0,112680.0,1.37117695]
[1757062327811,0.72340281,112690.0,112680.0,1.37117695]
[1757062328012,1.53924281,112690.0,112680.0,1.37117695]
[1757062328311,0.72340281,112690.0,112680.0,1.37117695]
[1757062328515,1.53924281,112690.0,112680.0,1.37117695]
[1757062334416,1.30887212,112690.0,112680.0,1.37117695]
[1757062334716,1.53924281,112690.0,112680.0,1.37117695]
[1757062345425,1.82747518,112690.0,112680.0,1.37117695]
[1757062354231,1.30887212,112690.0,112680.0,1.37117695]
[1757062354621,0.49303212,112690.0,112680.0,1.37117695]
[1757062354922,0.73899365,112690.0,112680.0,1.96487695]
[1757062355128,1.55459365,112690.0,112680.0,1.96487695]
[1757062355431,1.58074581,112690.0,112680.0,1.96487695]
[1757062355626,1.58074581,112690.0,112680.0,1.63487695]
[1757062355933,1.59429581,112690.0,112680.0,1.63487695]
[1757062359832,1.59429581,112690.0,112680.0,1.62117695]
[1757062360037,1.85359734,112690.0,112680.0,1.62117695]
[1757062360534,1.85359734,112690.0,112680.0,1.37117695]
[1757062363728,1.03799734,112690.0,112680.0,1.37117695]
[1757062363924,1.59421581,112690.0,112680.0,1.37117695]
[1757062364126,0.77869581,112690.0,112680.0,1.37117695]
[1757062364432,1.59421581,112690.0,112680.0,1.37117695]
[1757062365526,0.76514581,112690.0,112680.0,1.38438695]
[1757062365732,1.58066581,112690.0,112680.0,1.72438695]
[1757062366232,1.55451365,112690.0,112680.0,1.72438695]
[1757062366733,1.55451365,112690.0,112680.0,1.38438695]
[1757062369031,0.47969212,112690.0,112680.0,1.38438695]
[1757062369231,1.55447365,112690.0,112680.0,1.38438695]
[1757062371736,0.73899365,112690.0,112680.0,1.38438695]
[1757062371935,1.55443365,112690.0,112680.0,1.38438695]
[1757062372137,1.29513212,112690.0,112680.0,1.38438695]
[1757062372437,1.55443365,112690.0,112680.0,1.38438695]
[1757062377540,1.56710365,112690.0,112680.0,1.38438695]
[1757062379942,1.56710365,112690.0,112680.0,1.37117695]
[1757062382241,0.75166365,112690.0,112680.0,1.37117695]
[1757062382433,1.56698365,112690.0,112680.0,1.38438695]
[1757062382740,0.73899365,112690.0,112680.0,1.38438695]
[1757062382942,1.55431365,112690.0,112680.0,1.38438695]
[1757062385443,0.47969212,112690.0,112680.0,1.67438695]
[1757062385745,0.70883203,112690.0,112680.0,2.20368848]
[1757062385943,0.70883203,112690.0,112680.0,2.75962695]
[1757062386142,0.70883203,112690.0,112680.0,1.94438695]
[1757062386343,0.70883203,112690.0,112680.0,2.20368848]
[1757062387048,0.70883203,112690.0,112680.0,1.94438695]
[1757062390158,0.4495305,112690.0,112680.0,1.94438695]
[1757062390444,0.70883203,112690.0,112680.0,1.94438695]
[1757062390751,0.70883203,112690.0,112680.0,2.75954695]
[1757062391350,0.4495305,112690.0,112680.0,2.75954695]
[1757062391544,0.70883203,112690.0,112680.0,2.75954695]
[1757062395453,0.4495305,112690.0,112680.0,3.01884848]
[1757062395953,0.70883203,112690.0,112680.0,3.01884848]
[1757062397150,0.70883203,112690.0,112680.0,2.75954695]
[1757062397351,0.70883203,112690.0,112680.0,3.01884848]
[1757062397554,0.72258203,112690.0,112680.0,1.68117695]
[1757062397755,0.72258203,112690.0,112680.0,1.41117695]
[1757062402958,1.53754203,112690.0,112680.0,1.42494695]
[1757062403160,0.72258203,112690.0,112680.0,1.42494695]
[1757062403368,1.53754203,112690.0,112680.0,1.42494695]
[1757062403860,0.72258203,112690.0,112680.0,1.42494695]
[1757062404550,0.4495305,112690.0,112680.0,1.42494695]
[1757062404752,1.52379203,112690.0,112680.0,1.74494695]
[1757062405460,1.49490965,112690.0,112680.0,1.74494695]
[1757062406662,0.67994965,112690.0,112680.0,1.74494695]
[1757062406960,1.49490965,112690.0,112680.0,1.74494695]
[1757062407560,0.67994965,112690.0,112680.0,1.74494695]
[1757062407864,1.49486965,112690.0,112680.0,1.54494695]
[1757062408066,1.49486965,112690.0,112680.0,1.74494695]
[1757062408358,0.67994965,112690.0,112680.0,1.74494695]
[1757062408558,1.49486965,112690.0,112680.0,1.74494695]
[1757062408757,1.49486965,112690.0,112680.0,0.37584695]
[1757062408962,1.51660965,112690.0,112680.0,0.39824695]
[1757062412462,0.70168965,112690.0,112680.0,0.39824695]
[1757062412665,1.2861105,112690.0,112680.0,0.39824695]
[1757062413361,1.51652965,112690.0,112680.0,0.39824695]
[1757062415367,1.51652965,112690.0,112680.0,1.76734695]
[1757062416874,1.51652965,112690.0,112680.0,1.43734695]
[1757062419271,1.53027965,112690.0,112680.0,1.43734695]
[1757062419776,1.2998605,112690.0,112680.0,1.43734695]
[1757062419976,1.53027965,112690.0,112680.0,1.43734695]
[1757062420772,1.53027965,112690.0,112680.0,1.72734695]
[1757062420973,1.53027965,112690.0,112680.0,1.40734695]
[1757062421174,1.53027965,112690.0,112680.0,1.74734695]
[1757062421368,1.53027965,112690.0,112680.0,1.40734695]
[1757062421574,1.2998605,112690.0,112680.0,1.76734695]
[1757062421774,1.2861105,112690.0,112680.0,1.76734695]
[1757062422372,1.51652965,112690.0,112680.0,1.76734695]
[1757062424179,1.51652965,112690.0,112680.0,1.76634695]
[1757062424574,1.51652965,112690.0,112680.0,1.76534695]
[1757062425583,0.67994965,112690.0,112680.0,1.76534695]
[1757062425878,1.2641305,112690.0,112680.0,1.76534695]
[1757062426282,1.49454965,112690.0,112680.0,1.76534695]
[1757062426987,1.2641305,112690.0,112680.0,1.76534695]
[1757062427186,1.49454965,112690.0,112680.0,1.76534695]
[1757062428590,1.49454965,112690.0,112680.0,1.55534695]
[1757062428782,1.49454965,112690.0,112680.0,1.77534695]
[1757062429486,1.2641305,112690.0,112680.0,1.77534695]
[1757062429684,1.49454965,112690.0,112680.0,1.77534695]
[1757062430586,1.2640505,112690.0,112680.0,1.77534695]
[1757062432087,1.49446965,112690.0,112680.0,1.77534695]
[1757062433488,1.2640505,112690.0,112680.0,1.77534695]
[1757062433678,1.49446965,112690.0,112680.0,1.77534695]
[1757062438189,1.49446965,112690.0,112680.0,1.40534695]
[1757062438389,1.49446965,112690.0,112680.0,1.45534695]
[1757062438589,1.2640505,112690.0,112680.0,1.78534695]
[1757062439090,1.49446965,112690.0,112680.0,1.78534695]
[1757062440391,1.2640505,112690.0,112680.0,1.78534695]
[1757062440592,1.49446965,112690.0,112680.0,1.40534695]
[1757062440783,0.67994965,112690.0,112680.0,1.74534695]
[1757062440980,0.4495305,112690.0,112680.0,1.74534695]
[1757062441184,1.49426965,112690.0,112680.0,1.74534695]
[1757062441892,1.50720965,112690.0,112680.0,1.40534695]
[1757062443996,1.2767905,112690.0,112680.0,1.40534695]
[1757062444295,1.50720965,112690.0,112680.0,1.40534695]
[1757062445685,1.50720965,112690.0,112680.0,1.51534695]
[1757062450695,1.50720965,112690.0,112680.0,1.50157695]
[1757062452098,0.69288965,112690.0,112680.0,1.50157695]
[1757062452598,1.50696965,112690.0,112680.0,1.50157695]
[1757062453999,1.50700965,112690.0,112680.0,1.50157695]
[1757062456501,1.2765905,112690.0,112680.0,1.50157695]
[1757062456701,1.50700965,112690.0,112680.0,1.50157695]
[1757062456898,0.69288965,112690.0,112680.0,1.50157695]
[1757062457300,1.50688965,112690.0,112680.0,1.50157695]
[1757062458104,0.69288965,112690.0,112680.0,1.50157695]
[1757062458310,1.50688965,112690.0,112680.0,1.50157695]
[1757062459103,1.2764705,112690.0,112680.0,1.50157695]
[1757062459303,1.50688965,112690.0,112680.0,1.50157695]
[1757062460304,0.69288965,112690.0,112680.0,1.50157695]
[1757062460503,1.50684965,112690.0,112680.0,1.50157695]
[1757062463507,0.69288965,112690.0,112680.0,1.50157695]
[1757062463710,1.50676965,112690.0,112680.0,1.50157695]
[1757062464107,1.50676965,112690.0,112680.0,1.51473695]
[1757062464409,1.50676965,112690.0,112680.0,1.50157695]
[1757062464801,1.49382965,112690.0,112680.0,1.51473695]
[1757062467405,1.52264659,112690.0,112680.0,1.51473695]
[1757062469209,1.52464659,112690.0,112680.0,1.51473695]
[1757062469514,1.52664659,112690.0,112680.0,1.51473695]
[1757062473817,0.71276659,112690.0,112680.0,1.51473695]
[1757062474011,0.71276659,112690.0,112680.0,1.75473695]
[1757062474213,1.52640659,112690.0,112680.0,1.75473695]
[1757062475914,1.52640659,112690.0,112680.0,1.54473695]
[1757062476114,1.2671705,112690.0,112680.0,1.54473695]
[1757062476305,1.52640659,112690.0,112680.0,1.54473695]
[1757062476915,1.53919659,112690.0,112680.0,1.54473695]
[1757062477911,1.53919659,112690.0,112680.0,1.53157695]
[1757062483122,1.53919659,112690.0,112680.0,1.39157695]
[1757062484221,1.56525948,112690.0,112680.0,1.39157695]
[1757062488722,1.53919659,112690.0,112680.0,1.39157695]
[1757062490025,0.72555659,112690.0,112680.0,1.39157695]
[1757062490222,1.53895659,112690.0,112680.0,1.39157695]
[1757062496823,1.2797205,112690.0,112680.0,1.39157695]
[1757062497023,1.53895659,112690.0,112680.0,1.39157695]
[1757062499640,0.72555659,112690.0,112680.0,1.39157695]
[1757062499937,1.53879659,112690.0,112680.0,1.39157695]
[1757062509245,0.71276659,112690.0,112680.0,1.40520695]
[1757062509450,1.52580659,112690.0,112680.0,1.40520695]
[1757062517159,1.53959659,112690.0,112680.0,1.40520695]
[1757062518960,0.9195605,112690.0,112680.0,1.40520695]
[1757062519158,1.90039659,112690.0,112680.0,1.40520695]
[1757062523067,1.6411605,112690.0,112680.0,1.40520695]
[1757062523374,1.90039659,112690.0,112680.0,1.40520695]
[1757062526569,1.6411605,112690.0,112680.0,1.40520695]
[1757062526769,1.90039659,112690.0,112680.0,1.40520695]
[1757062527469,1.87159361,112690.0,112680.0,1.40520695]
[1757062537177,1.87159361,112690.0,112680.0,1.45520695]
[1757062538878,1.87159361,112690.0,112680.0,1.44157695]
[1757062544084,1.86959361,112690.0,112680.0,1.44157695]
[1757062544281,1.87359361,112690.0,112680.0,1.44157695]
[1757062544488,1.87959361,112690.0,112680.0,1.44157695]
[1757062548887,1.6491605,112690.0,112680.0,1.44157695]
[1757062549080,1.87959361,112690.0,112680.0,1.44157695]
[1757062550485,1.87959361,112690.0,112680.0,1.39157695]
[1757062552287,1.87959361,112690.0,112680.0,1.44157695]
[1757062555893,1.87959361,112690.0,112680.0,1.39157695]
[1757062558394,1.6491605,112690.0,112680.0,1.39157695]
[1757062558583,1.87959361,112690.0,112680.0,1.39157695]
[1757062559390,1.15799361,112690.0,112680.0,1.39157695]
[1757062559588,1.87959361,112690.0,112680.0,1.39157695]
[1757062566799,1.6491605,112690.0,112680.0,1.39157695]
[1757062566998,1.87959361,112690.0,112680.0,1.39157695]
[1757062571899,1.15799361,112690.0,112680.0,1.39157695]
[1757062572198,1.87959361,112690.0,112680.0,1.39157695]
[1757062577113,1.06655361,112690.0,112680.0,1.39157695]
[1757062577514,1.87823361,112690.0,112680.0,1.39157695]
[1757062581218,1.06655361,112690.0,112680.0,1.39157695]
[1757062581515,1.87815361,112690.0,112680.0,1.39157695]
[1757062587425,1.90697667,112690.0,112680.0,1.39157695]
[1757062589922,1.09537667,112690.0,112680.0,1.39157695]
[1757062590223,1.90677667,112690.0,112680.0,1.39157695]
[1757062590422,1.6475205,112690.0,112680.0,1.39157695]
[1757062590624,1.90677667,112690.0,112680.0,1.39157695]
[1757062590823,1.09537667,112690.0,112680.0,1.39157695]
[1757062591017,1.90677667,112690.0,112680.0,1.39157695]
[1757062591326,1.6475205,112690.0,112680.0,1.39157695]
[1757062591518,1.09537667,112690.0,112680.0,1.39157695]
[1757062591718,1.90673667,112690.0,112680.0,1.40512695]
[1757062592724,1.09537667,112690.0,112680.0,1.40512695]
[1757062592917,1.90673667,112690.0,112680.0,1.40512695]
[1757062598030,1.09537667,112690.0,112680.0,1.40512695]
[1757062598331,1.90661667,112690.0,112680.0,1.40512695]
[1757062599130,1.90661667,112690.0,112680.0,1.39157695]
[1757062602234,1.90661667,112690.0,112680.0,1.46157695]
[1757062604939,1.90661667,112690.0,112680.0,1.39157695]
[1757062609037,1.09537667,112690.0,112680.0,1.74423695]
[1757062609244,0.8223305,112690.0,112680.0,2.25349312]
[1757062609434,0.8223305,112690.0,112680.0,1.99423695]
[1757062609639,0.8223305,112690.0,112680.0,2.25349312]
[1757062609834,1.08158667,112690.0,112680.0,2.25349312]
[1757062610839,0.8223305,112690.0,112680.0,2.25349312]
[1757062611236,1.08158667,112690.0,112680.0,2.25349312]
[1757062611433,0.8223305,112690.0,112680.0,2.25349312]
[1757062611632,1.08158667,112690.0,112680.0,2.25349312]
[1757062613347,1.08158667,112690.0,112680.0,1.99423695]
[1757062613540,1.08158667,112690.0,112680.0,2.25349312]
[1757062616341,1.08158667,112690.0,112680.0,1.99423695]
[1757062616544,1.35431284,112690.0,112680.0,1.73157695]
[1757062616938,1.09505667,112690.0,112680.0,1.73157695]
[1757062620348,0.8223305,112690.0,112680.0,1.74423695]
[1757062620641,1.89230667,112690.0,112680.0,1.74423695]
[1757062621141,1.90577667,112690.0,112680.0,2.54229695]
[1757062621645,1.6465205,112690.0,112680.0,2.54229695]
[1757062621848,1.90577667,112690.0,112680.0,2.54229695]
[1757062622142,1.6465205,112690.0,112680.0,2.54229695]
[1757062622348,1.09505667,112690.0,112680.0,2.55495695]
[1757062622542,1.09505667,112690.0,112680.0,2.55555695]
[1757062622744,0.8358005,112690.0,112680.0,2.55555695]
[1757062622937,1.09505667,112690.0,112680.0,1.74423695]
[1757062623241,1.09505667,112690.0,112680.0,2.54289695]
[1757062624149,0.8358005,112690.0,112680.0,2.54289695]
[1757062624350,1.09505667,112690.0,112680.0,2.54289695]
[1757062624849,0.8358005,112690.0,112680.0,2.54289695]
[1757062625049,1.09505667,112690.0,112680.0,1.73157695]
[1757062625350,0.8358005,112690.0,112680.0,1.73157695]
[1757062625552,1.09505667,112690.0,112680.0,1.73157695]
[1757062627054,0.8358005,112690.0,112680.0,1.73157695]
[1757062627354,1.09505667,112690.0,112680.0,1.73157695]
[1757062632865,0.8358005,112690.0,112680.0,1.73157695]
[1757062633273,1.09505667,112690.0,112680.0,1.73157695]
[1757062638270,0.8358005,112690.0,112680.0,1.73157695]
[1757062638569,1.09505667,112690.0,112680.0,1.73157695]
[1757062640361,0.8358005,112690.0,112680.0,1.73157695]
[1757062640666,1.09505667,112690.0,112680.0,1.73157695]
[1757062642369,1.62676284,112690.0,112680.0,0.7732841]
[1757062643069,2.43816284,112690.0,112680.0,0.7732841]
[1757062643969,1.62676284,112690.0,112680.0,0.7732841]
[1757062644567,2.43824284,112690.0,112680.0,0.7732841]
[1757062644768,2.43824284,112690.0,112680.0,0.7957541]
[1757062644962,1.62676284,112690.0,112680.0,0.7957541]
[1757062645164,0.8582505,112690.0,112680.0,0.7957541]
[1757062645465,1.92886667,112690.0,112680.0,0.7957541]
[1757062647770,1.6696105,112690.0,112680.0,0.7957541]
[1757062647971,1.92886667,112690.0,112680.0,0.7957541]
[1757062648472,0.8582505,112690.0,112680.0,0.7957541]
[1757062648775,1.92874667,112690.0,112680.0,0.8088541]
[1757062649368,1.6694905,112690.0,112680.0,0.8088541]
[1757062649669,1.89992334,112690.0,112680.0,0.8088541]
[1757062650471,1.08868334,112690.0,112680.0,0.8088541]
[1757062652172,0.8582505,112690.0,112680.0,0.8088541]
[1757062652474,1.08868334,112690.0,112680.0,0.8088541]
[1757062653575,0.8582505,112690.0,112680.0,0.8088541]
[1757062653779,1.08868334,112690.0,112680.0,0.8088541]
[1757062655977,1.07521334,112690.0,112680.0,0.8088541]
[1757062656180,0.8447805,112690.0,112680.0,1.1588541]
[1757062656378,0.8447805,112690.0,112680.0,0.8788541]
[1757062656676,0.8447805,112690.0,112680.0,1.1788541]
[1757062656874,0.8447805,112690.0,112680.0,1.6197341]
[1757062657084,0.8447805,112690.0,112680.0,1.9797341]
[1757062657676,1.07521334,112690.0,112680.0,1.9797341]
[1757062657877,1.07521334,112690.0,112680.0,1.6897341]
[1757062658781,0.8447805,112690.0,112680.0,1.6897341]
[1757062658979,1.07521334,112690.0,112680.0,1.6897341]
[1757062663180,0.8447805,112690.0,112680.0,1.6397341]
[1757062663374,1.07521334,112690.0,112680.0,1.6397341]
[1757062663883,0.35361334,112690.0,112680.0,1.6397341]
[1757062664081,1.07521334,112690.0,112680.0,1.6397341]
[1757062664483,1.07521334,112690.0,112680.0,1.6197341]
[1757062664682,1.07521334,112690.0,112680.0,1.6397341]
[1757062669686,0.8447805,112690.0,112680.0,1.6397341]
[1757062669890,1.07521334,112690.0,112680.0,1.6397341]
[1757062670081,1.07521334,112690.0,112680.0,0.8288541]
[1757062670386,1.07521334,112690.0,112680.0,1.6196541]
[1757062670896,1.07521334,112690.0,112680.0,0.8088541]
[1757062671082,1.07521334,112690.0,112680.0,1.6196541]
[1757062672187,1.10138197,112690.0,112680.0,1.6196541]
[1757062672984,1.10138197,112690.0,112680.0,1.6396541]
[1757062674689,1.10138197,112690.0,112680.0,0.8288541]
[1757062674891,1.10138197,112690.0,112680.0,1.9896541]
[1757062675086,1.07521334,112690.0,112680.0,1.9896541]
[1757062675786,0.8447805,112690.0,112680.0,1.9896541]
[1757062677892,0.8447805,112690.0,112680.0,0.8888541]
[1757062678191,1.07521334,112690.0,112680.0,1.9496141]
[1757062682597,1.07521334,112690.0,112680.0,0.8888541]
[1757062682795,1.08854334,112690.0,112680.0,1.6195741]
[1757062684396,1.08854334,112690.0,112680.0,0.8088541]
[1757062685078,0.8581105,112690.0,112680.0,0.8088541]
[1757062685282,1.08854334,112690.0,112680.0,0.8088541]
[1757062691089,0.8581105,112690.0,112680.0,0.8088541]
[1757062691294,1.08854334,112690.0,112680.0,0.8088541]
[1757062693600,0.8581105,112690.0,112680.0,0.8088541]
[1757062693793,1.08854334,112690.0,112680.0,0.8088541]
[1757062698397,1.08854334,112690.0,112680.0,0.7957541]
[1757062700294,0.8581105,112690.0,112680.0,0.7957541]
[1757062700600,1.08854334,112690.0,112680.0,0.8090441]
[1757062701503,0.8581105,112690.0,112680.0,0.8090441]
[1757062701692,1.08854334,112690.0,112680.0,0.8090441]
[1757062702502,1.89914334,112690.0,112680.0,0.8290441]
[1757062703000,1.89914334,112690.0,112680.0,1.0790441]
[1757062703197,1.89914334,112690.0,112680.0,0.8290441]
[1757062705201,1.07521334,112690.0,112680.0,1.1590441]
[1757062705500,1.88581334,112690.0,112680.0,0.8790441]
[1757062707202,1.91200631,112690.0,112680.0,0.8790441]